fUSD/lending_fUSD_20241015
["ID","MTS","AMOUNT","RATE_DAILY","PERIOD"]
[340312029,1729027831877,-8486.04533077,0.00011,2]
[340312030,1729027831888,-664.57727663,0.00011,2]
[340312031,1729027831899,-4363.30841209,0.00011,2]
[340312032,1729027831910,-5221.07153573,0.00011,2]
[340312033,1729027831921,-9951.80583293,0.00011,2]
[340312034,1729027831943,-5395.38119057,0.00011,2]
[340312035,1729027831954,-1644.32044716,0.00011,2]
[340312036,1729027831964,-793.35,0.00011,2]
[340312037,1729027831984,-552.08886898,0.00011,2]
[340312038,1729027831995,-2498.3477175,0.00011,2]
[340312039,1729027832005,-3372.54487743,0.00011,2]
[340312040,1729027832016,-2285.89488508,0.00011,2]
[340312041,1729027832027,-983.93,0.00011,2]
[340312042,1729027832038,-700.0,0.00011,2]
[340312043,1729027832049,-337.34931894,0.00011,2]
[340312044,1729027832060,-1274.32993384,0.00011,2]
[340312045,1729027832071,-737.5985368,0.00011,2]
[340312046,1729027832094,-12379.10156961,0.00011,2]
[340312047,1729027832111,-425825.75828664,0.00011,2]
[340312048,1729027832122,-11574.20259887,0.00011,2]
[340312050,1729027837538,-27179.18675173,0.00011,2]
[340312051,1729027837550,-1524.64822492,0.00011,2]
[340312052,1729027837561,-22590.85096767,0.00011,2]
[340312053,1729027837573,-888.51999758,0.00011,2]
[340312054,1729027837584,-514.88286204,0.00011,2]
[340312055,1729027837595,-880.12,0.00011,2]
[340312056,1729027837609,-612.18240239,0.00011,2]
[340312057,1729027837621,-8059.376716,0.00011,2]
[340312058,1729027837633,-2397.52493888,0.00011,2]
[340312059,1729027837644,-879.14563992,0.00011,2]
[340312060,1729027837655,-1921.952907,0.00011,2]
[340312061,1729027837667,-517.48,0.00011,2]
[340312062,1729027837682,-1733.9148197,0.00011,2]
[340312063,1729027837696,-3755.47355016,0.00011,2]
[340312064,1729027837708,-4936.4916975,0.00011,2]
[340312065,1729027837723,-1632.18970442,0.00011,2]
[340312066,1729027837734,-308.42346545,0.00011,2]
[340312067,1729027837745,-313.27,0.00011,2]
[340312068,1729027837756,-1120.66502401,0.00011,2]
[340312069,1729027837768,-254.99999,0.00011,2]
[340312070,1729027837783,-941.43031319,0.00011,2]
[340312071,1729027837794,-28766.3029231,0.00011,2]
[340312072,1729027837804,-6756.10214935,0.00011,2]
[340312073,1729027837816,-1850.0,0.00011,2]
[340312074,1729027837827,-2056.46944238,0.00011,2]
[340312075,1729027837842,-429.61014553,0.00011,2]
[340312076,1729027837855,-748.12460612,0.00011,2]
[340312077,1729027837868,-597.24,0.00011,2]
[340312078,1729027837879,-5740.77834692,0.00011,2]
[340312079,1729027837890,-1311.26005332,0.00011,2]
[340312080,1729027837901,-1886.88,0.00011,2]
[340312081,1729027837912,-1765.0,0.00011,2]
[340312082,1729027837924,-135956.35176304,0.00011,2]
[340312083,1729027837935,-508.46701321,0.00011,2]
[340312084,1729027837947,-765.41975306,0.00011,2]
[340312085,1729027837958,-1340.01178555,0.00011,2]
[340312086,1729027837970,-2757.58727979,0.00011,2]
[340312087,1729027837981,-1524.03827589,0.00011,2]
[340312088,1729027837993,-1893.1272692,0.00011,2]
[340312089,1729027838004,-659.75132017,0.00011,2]
[340312090,1729027838019,-5117954.02865873,0.00011,2]
[340312091,1729027838030,-790817.93254842,0.00011,2]
[340312092,1729027838041,-18958.69146001,0.00011,2]
[340312093,1729027838052,-348.23005832,0.00011,2]
[340312094,1729027838063,-452.64,0.00011,2]
[340312100,1729027839513,-255.42348,0.00011,2]
[340312101,1729027839524,-541.89387558,0.00011,2]
[340312102,1729027839535,-1986.15335335,0.00011,2]
[340312103,1729027839547,-9876.60459717,0.00011,2]
[340312104,1729027839558,-511.70455756,0.00011,2]
[340312105,1729027839569,-279142.77628386,0.00011,2]
[340312106,1729027839580,-1048.582763,0.00011,2]
[340312107,1729027839591,-846.52210567,0.00011,2]
[340312108,1729027839603,-11081.9877812,0.00011,2]
[340312109,1729027839615,-753.99558445,0.00011,2]
[340312110,1729027839626,-530.86535505,0.00011,2]
[340312111,1729027839653,-558.89350208,0.00011,2]
[340312112,1729027839664,-15469.46879785,0.00011,2]
[340312113,1729027839675,-7372.9692368,0.00011,2]
[340312114,1729027839694,-2362628.4013677,0.00011,2]
[340312115,1729027839705,-326802.0336205,0.00011,2]
[340312116,1729027839716,-7899.99393045,0.00011,2]
[340312117,1729027839725,-156.84422594,0.00011344,2]
[340312118,1729027839734,-186.01079357,0.00011444,2]
[340312119,1729027839744,-588.62375144,0.0001146,2]
[340312120,1729027839753,-1808.66992956,0.00011544,2]
[340312121,1729027839762,-306.44469223,0.0001156,2]
[340312122,1729027839771,-500.0,0.0001156,2]
[340312123,1729027839781,-13008.55,0.0001156,2]
[340312124,1729027839790,-1280.75,0.0001156,2]
[340312125,1729027839799,-3379.89,0.0001156,2]
[340312126,1729027839808,-748.24,0.0001156,2]
[340312127,1729027839818,-501.77689152,0.0001156,2]
[340312128,1729027839827,-501.48945397,0.00011644,2]
[340312129,1729027839836,-1222.36753083,0.00011944,2]
[340312130,1729027839845,-150.0,0.00012043,2]
[340312131,1729027839856,-1222.3675308,0.00013384,2]
[340312132,1729027839865,-9999.99,0.00013384,2]
[340312133,1729027839874,-499.99,0.00013384,2]
[340312134,1729027839883,-150.99,0.00013384,2]
[340312135,1729027839893,-2320.35,0.00013384,2]
[340312136,1729027839902,-501.48945394,0.00013509,2]
[340312137,1729027839911,-1222.3675308,0.00014823,2]
[340312138,1729027839920,-501.48945394,0.00015374,2]
[340312139,1729027839929,-1222.3675308,0.00016263,2]
[340312140,1729027839938,-188.11,0.000163,2]
[340312141,1729027839947,-161.17,0.00016438,2]
[340312142,1729027839956,-886.425,0.00016599,2]
[340312143,1729027839965,-809.0,0.00016599,2]
[340312144,1729027839975,-449.0,0.00016599,2]
[340312145,1729027839984,-812.0,0.00016599,2]
[340312146,1729027839993,-560.0,0.00016599,2]
[340312147,1729027840002,-150.0,0.00016599,2]
[340312148,1729027840011,-150.0,0.00016599,2]
[340312149,1729027840020,-163.53,0.00016712,2]
[340312150,1729027840029,-501.48945394,0.00017239,2]
[340312151,1729027840039,-901.0,0.000174,2]
[340312152,1729027840048,-1222.3675308,0.00017702,2]
[340312153,1729027840057,-588.62375142,0.0001818,2]
[340312154,1729027840066,-1808.66992955,0.00018222,2]
[340312155,1729027840075,-501.48945394,0.00019105,2]
[340312156,1729027840084,-150.0,0.00019109,2]
[340312157,1729027840093,-1222.3675308,0.00019142,2]
[340312158,1729027840102,-250.0,0.0001921,2]
[340312159,1729027840114,-1000.0,0.00019264,2]
[340312160,1729027840123,-177.47,0.00019316,2]
[340312161,1729027840132,-575.21,0.00019452,2]
[340312162,1729027840141,-809.0,0.00019599,2]
[340312163,1729027840150,-352.289,0.00019599,2]
[340312164,1729027840160,-223.412,0.00019599,2]
[340312165,1729027840169,-150.0,0.00019599,2]
[340312166,1729027840179,-159.66,0.00019833,2]
[340312167,1729027840189,-175.87,0.0002,2]
[340312168,1729027840199,-175.87,0.0002,2]
[340312169,1729027840208,-175.87,0.0002,2]
[340312170,1729027840218,-175.87,0.0002,2]
[340312171,1729027840231,-175.87,0.0002,2]
[340312172,1729027840240,-175.87,0.0002,2]
[340312173,1729027840250,-175.87,0.0002,2]
[340312174,1729027840260,-175.87,0.0002,2]
[340312175,1729027840440,-175.87,0.0002,2]
[340312176,1729027840451,-175.87,0.0002,2]
[340312177,1729027840461,-175.87,0.0002,2]
[340312178,1729027840471,-175.87,0.0002,2]
[340312179,1729027840480,-175.87,0.0002,2]
[340312180,1729027840490,-175.87,0.0002,2]
[340312181,1729027840499,-175.87,0.0002,2]
[340312182,1729027840508,-175.87,0.0002,2]
[340312183,1729027840518,-175.87,0.0002,2]
[340312184,1729027840527,-175.87,0.0002,2]
[340312185,1729027840537,-175.87,0.0002,2]
[340312186,1729027840547,-175.87,0.0002,2]
[340312187,1729027840556,-175.87,0.0002,2]
[340312188,1729027840566,-175.87,0.0002,2]
[340312189,1729027840575,-175.87,0.0002,2]
[340312190,1729027840585,-175.87,0.0002,2]
[340312191,1729027840595,-175.87,0.0002,2]
[340312192,1729027840605,-175.87,0.0002,2]
[340312193,1729027840615,-175.87,0.0002,2]
[340312194,1729027840624,-175.87,0.0002,2]
[340312195,1729027840634,-175.87,0.0002,2]
[340312196,1729027840643,-175.87,0.0002,2]
[340312197,1729027840654,-175.87,0.0002,2]
[340312198,1729027840664,-175.87,0.0002,2]
[340312199,1729027840674,-175.87,0.0002,2]
[340312200,1729027840683,-175.87,0.0002,2]
[340312201,1729027840693,-175.87,0.0002,2]
[340312202,1729027840703,-175.87,0.0002,2]
[340312203,1729027840712,-175.87,0.0002,2]
[340312204,1729027840722,-175.87,0.0002,2]
[340312205,1729027840731,-175.87,0.0002,2]
[340312206,1729027840741,-175.87,0.0002,2]
[340312207,1729027840750,-175.87,0.0002,2]
[340312208,1729027840759,-175.87,0.0002,2]
[340312209,1729027840769,-175.87,0.0002,2]
[340312210,1729027840778,-175.87,0.0002,2]
[340312211,1729027840788,-175.87,0.0002,2]
[340312212,1729027840797,-175.87,0.0002,2]
[340312213,1729027840807,-175.87,0.0002,2]
[340312214,1729027840817,-175.87,0.0002,2]
[340312215,1729027840826,-175.87,0.0002,2]
[340312216,1729027840836,-175.87,0.0002,2]
[340312217,1729027840846,-175.87,0.0002,2]
[340312218,1729027840857,-175.87,0.0002,2]
[340312219,1729027840866,-175.87,0.0002,2]
[340312220,1729027840875,-175.87,0.0002,2]
[340312221,1729027840886,-175.87,0.0002,2]
[340312222,1729027840896,-175.87,0.0002,2]
[340312223,1729027840905,-175.87,0.0002,2]
[340312224,1729027840915,-175.87,0.0002,2]
[340312225,1729027840925,-175.87,0.0002,2]
[340312226,1729027840936,-175.87,0.0002,2]
[340312227,1729027840945,-175.87,0.0002,2]
[340312228,1729027840956,-175.87,0.0002,2]
[340312229,1729027840966,-175.87,0.0002,2]
[340312230,1729027840976,-175.87,0.0002,2]
[340312231,1729027840986,-175.87,0.0002,2]
[340312232,1729027840996,-175.87,0.0002,2]
[340312233,1729027841006,-175.87,0.0002,2]
[340312234,1729027841016,-175.87,0.0002,2]
[340312235,1729027841026,-175.87,0.0002,2]
[340312236,1729027841035,-175.87,0.0002,2]
[340312237,1729027841044,-175.87,0.0002,2]
[340312238,1729027841053,-175.87,0.0002,2]
[340312239,1729027841063,-175.87,0.0002,2]
[340312240,1729027841073,-175.87,0.0002,2]
[340312241,1729027841082,-175.87,0.0002,2]
[340312242,1729027841092,-175.87,0.0002,2]
[340312243,1729027841102,-175.87,0.0002,2]
[340312244,1729027841112,-175.87,0.0002,2]
[340312245,1729027841122,-1958.28,0.00020179,2]
[340312246,1729027841133,-245.86,0.00020382,2]
[340312247,1729027841143,-1222.3675308,0.00020581,2]
[340312248,1729027841153,-250.0,0.00020712,2]
[340312249,1729027841162,-501.48945394,0.0002097,2]
[340312250,1729027841172,-1000.0,0.00021672,2]
[340312251,1729027841181,-180.64,0.00021716,2]
[340312252,1729027841191,-150.0,0.00021719,2]
[340312253,1729027841200,-1222.3675308,0.00022021,2]
[340312254,1729027841209,-1343.53,0.00022084,2]
[340312255,1729027841219,-500.0,0.00022093,2]
[340312256,1729027841231,-188.11,0.000221,14]
[340312257,1729027841241,-1852.42,0.00022112,2]
[340312258,1729027841250,-250.0,0.00022333,2]
[340312259,1729027841260,-200.0,0.00022395,2]
[340312260,1729027841270,-803.826,0.00022599,2]
[340312261,1729027841279,-245.86,0.00022646,2]
[340312262,1729027841289,-774.38,0.00022672,30]
[340312263,1729027841298,-469.68,0.00022777,2]
[340312264,1729027841309,-501.48945394,0.00022835,2]
[340312265,1729027841320,-200.9,0.00022909,2]
[340312266,1729027841331,-450.14,0.00022935,2]
[340312267,1729027841340,-1500.0,0.00023115,2]
[340312268,1729027841350,-23890.0,0.00023115,2]
[340312269,1729027841360,-161.98,0.00023158,2]
[340312270,1729027841369,-500.0,0.000232,2]
[340312271,1729027841379,-1222.3675308,0.0002346,2]
[340312272,1729027841388,-167.0,0.00023792,2]
[340312273,1729027841398,-1000.0,0.0002408,2]
[340312274,1729027841407,-450.14,0.00024082,2]
[340312275,1729027841417,-1500.0,0.000241,2]
[340312276,1729027841426,-557.82127351,0.0002457,2]
[340312277,1729027841437,-500.0,0.00024658,7]
[340312278,1729027841447,-340.4754,0.000247,2]
[340312279,1729027841456,-9251.3322,0.000247,2]
[340312280,1729027841465,-3336.2739,0.000247,2]
[340312281,1729027841475,-501.48945394,0.000247,2]
[340312282,1729027841485,-188035.36293711,0.000248,2]
[340312283,1729027841498,-1743.96203131,0.000248,2]
[340312284,1729027841510,-388.91403158,0.000248,2]
[340312285,1729027841519,-981.46330728,0.000248,2]
[340312286,1729027841531,-681.43362743,0.000248,2]
[340312287,1729027841542,-24605.65806529,0.000248,2]
[340312288,1729027841551,-272.8281,0.000248,2]
[340312289,1729027841561,-493.199,0.000248,2]
[340312290,1729027841570,-398.9263,0.000248,2]
[340312291,1729027841579,-4986.3405,0.000248,2]
[340312292,1729027841589,-165.826,0.00024831,8]
[340312293,1729027841598,-322.62254559,0.00024854,2]
[340312294,1729027841607,-155.941,0.00024868,8]
[340312295,1729027841617,-1704.2607,0.000249,2]
[340312296,1729027841626,-655.82,0.000249,2]
[340312297,1729027841635,-151.137,0.000249,2]
[340312298,1729027841645,-60399.3807,0.000249,2]
[340312299,1729027841654,-1128.2616,0.000249,2]
[340312300,1729027841663,-655.58510831,0.000249,2]
[340312301,1729027841672,-155.74,0.000249,31]
[340312302,1729027841681,-155.74,0.000249,31]
[340312303,1729027841691,-155.74,0.000249,31]
[340312304,1729027841701,-155.74,0.000249,31]
[340312305,1729027841710,-155.74,0.000249,31]
[340312306,1729027841720,-155.74,0.000249,31]
[340312307,1729027841730,-155.74,0.000249,31]
[340312308,1729027841739,-150.0,0.000249,2]
[340312309,1729027841748,-316.67134172,0.000249,2]
[340312310,1729027841757,-188.11,0.000249,14]
[340312311,1729027841766,-1222.3675308,0.000249,2]
[340312312,1729027841775,-1808.66992955,0.000249,2]
[340312313,1729027841784,-588.62375142,0.000249,2]
[340312314,1729027841793,-245.86,0.0002491,2]
[340312315,1729027841802,-161.56906448,0.00024973,2]
[340312316,1729027841811,-500.0,0.00024973,2]
[340312317,1729027841822,-150.0,0.00024996,2]
[340312318,1729027841831,-150.0,0.00024996,2]
[340312319,1729027841840,-150.0,0.00024996,2]
[340312320,1729027841849,-150.0,0.00024996,2]
[340312321,1729027841859,-150.0,0.00024996,2]
[340312322,1729027841868,-150.0,0.00024997,2]
[340312323,1729027841877,-150.0,0.00024997,2]
[340312324,1729027841886,-150.0,0.00024997,2]
[340312325,1729027841895,-150.0,0.00024997,2]
[340312326,1729027841904,-150.0,0.00024997,2]
[340312327,1729027841913,-17385.40329215,0.00024998,8]
[340312328,1729027841924,-150.0,0.00024998,2]
[340312329,1729027841934,-150.0,0.00024998,2]
[340312330,1729027841944,-150.0,0.00024998,2]
[340312331,1729027841955,-150.0,0.00024998,2]
[340312332,1729027841965,-789.0,0.00024998,2]
[340312333,1729027841974,-152.95558118,0.00024999,2]
[340312334,1729027841984,-375.0,0.00024999,2]
[340312335,1729027841994,-150.0,0.00024999,2]
[340312336,1729027842003,-150.0,0.00024999,2]
[340312337,1729027842014,-150.0,0.00024999,2]
[340312338,1729027842023,-150.0,0.00024999,2]
[340312339,1729027842035,-17607.92278208,0.00025,3]
[340312340,1729027842051,-744.12920365,0.00025,3]
[340312341,1729027842064,-1000.0,0.00025,3]
[340312342,1729027842077,-10682.73555237,0.00025,3]
[340312343,1729027842090,-95587.42045142,0.00025,3]
[340312344,1729027842103,-825.47805821,0.00025,3]
[340312345,1729027842114,-11809.42168032,0.00025,3]
[340312346,1729027842128,-411.79375383,0.00025,3]
[340312347,1729027842141,-1944.06277079,0.00025,3]
[340312348,1729027842162,-175.87,0.0002,2]
[340312349,1729027842172,-441.02321857,0.00025,3]
[340312350,1729027842185,-3073.72889359,0.00025,3]
[340312352,1729027842532,-159.09,0.00010959,2]
[340312353,1729027842542,-175.87,0.0002,2]
[340312354,1729027842551,-175.87,0.0002,2]
[340312355,1729027842560,-175.87,0.0002,2]
[340312356,1729027842570,-175.87,0.0002,2]
[340312357,1729027842579,-175.87,0.0002,2]
[340312359,1729027842589,-175.87,0.0002,2]
[340312361,1729027842599,-175.87,0.0002,2]
[340312362,1729027842610,-175.87,0.0002,2]
[340312363,1729027842619,-175.87,0.0002,2]
[340312364,1729027842628,-175.87,0.0002,2]
[340312365,1729027842638,-175.87,0.0002,2]
[340312366,1729027842647,-175.87,0.0002,2]
[340312367,1729027842657,-175.87,0.0002,2]
[340312368,1729027842666,-175.87,0.0002,2]
[340312369,1729027842675,-175.87,0.0002,2]
[340312370,1729027842684,-175.87,0.0002,2]
[340312371,1729027842693,-28262.7271583,0.00025,3]
[340312372,1729027842704,-8679.59506081,0.00025,3]
[340312373,1729027842716,-610.20934057,0.00025,3]
[340312374,1729027842728,-442.97100001,0.00025,3]
[340312375,1729027842747,-175.87,0.0002,2]
[340312376,1729027842756,-17916.75300949,0.00025,3]
[340312377,1729027842767,-5645.78035599,0.00025,3]
[340312378,1729027842783,-175.87,0.0002,2]
[340312379,1729027842792,-3903.1014258,0.00025,3]
[340312380,1729027842813,-500005.99988403,0.00025,3]
[340312381,1729027842824,-766.69689252,0.00025,3]
[340312382,1729027842835,-1598.31428799,0.00025,3]
[340312383,1729027842847,-735.896,0.00025,3]
[340312384,1729027842858,-400.738929,0.00025,3]
[340312385,1729027842869,-1323.34911343,0.00025,3]
[340312386,1729027842880,-445.70504057,0.00025,3]
[340312387,1729027842900,-175.87,0.0002,2]
[340312388,1729027842909,-7308.11605945,0.00025,3]
[340312389,1729027842920,-1605.35180376,0.00025,3]
[340312390,1729027842931,-66513.23367096,0.00025,3]
[340312391,1729027842947,-2026.45879286,0.00025,3]
[340312392,1729027842958,-1872.08172289,0.00025,3]
[340312393,1729027842970,-741.56502725,0.00025,3]
[340312394,1729027842982,-20180.1334991,0.00025,3]
[340312395,1729027842993,-31336.31523082,0.00025,3]
[340312396,1729027843004,-5700.89523965,0.00025,3]
[340312397,1729027843020,-175.87,0.0002,2]
[340312398,1729027843029,-1773.9059653,0.00025,3]
[340312399,1729027843040,-2398.89507912,0.00025,3]
[340312400,1729027843055,-372.45346463,0.00025,3]
[340312402,1729027845569,-12217.23391147,0.00025,3]
[340312403,1729027845580,-432.00902886,0.00025,3]
[340312404,1729027845660,-0.26533473,0.00025,3]
[340312405,1729027845939,-1655.45,0.00025,3]
[340312424,1729029031702,-157.59,0.00010959,2]
[340312425,1729029031714,-250.0,0.00017999,2]
[340312426,1729029031724,-150.0,0.00017999,2]
[340312427,1729029031733,-150.0,0.00017999,2]
[340312428,1729029031742,-150.0,0.00017999,2]
[340312429,1729029031751,-150.0,0.00017999,2]
[340312430,1729029031761,-150.0,0.00017999,2]
[340312431,1729029031771,-150.0,0.00019624,2]
[340312432,1729029031780,-300.0,0.00019725,2]
[340312433,1729029031789,-150.0,0.00020999,2]
[340312434,1729029031798,-150.0,0.00020999,2]
[340312435,1729029031807,-150.0,0.00020999,2]
[340312436,1729029031816,-150.0,0.00020999,2]
[340312437,1729029031826,-24640.0158,0.00021386,2]
[340312438,1729029031835,-420.0,0.00021484,2]
[340312439,1729029031844,-31611.472907,0.00021484,2]
[340312440,1729029031854,-6056.69,0.00021484,2]
[340312441,1729029031863,-238.61,0.00021486,2]
[340312442,1729029031872,-299.99,0.00021486,7]
[340312443,1729029031882,-499.99,0.00021486,2]
[340312444,1729029031891,-264.52,0.00022118,2]
[340312445,1729029031900,-250.0,0.00022163,2]
[340312446,1729029031910,-400.0,0.00022356,2]
[340312447,1729029031919,-5057.21,0.00022356,2]
[340312448,1729029031928,-250.0,0.00022876,2]
[340312449,1729029031938,-735.66,0.00023103,30]
[340312450,1729029031947,-250.0,0.00023238,2]
[340312451,1729029031956,-2900.0,0.00023238,2]
[340312452,1729029031965,-150.0,0.0002326,2]
[340312453,1729029031976,-150.0,0.00023261,2]
[340312454,1729029031985,-23880.0,0.00023279,2]
[340312455,1729029031995,-3000.0,0.000233,2]
[340312456,1729029032004,-587.0,0.00023401,2]
[340312457,1729029032013,-192.13,0.00023434,2]
[340312458,1729029032022,-806.23,0.00023458,2]
[340312459,1729029032032,-666.55,0.00023516,2]
[340312460,1729029032042,-2168.68,0.00023529,2]
[340312461,1729029032051,-600.0,0.00023696,2]
[340312462,1729029032061,-238.61,0.0002375,2]
[340312463,1729029032071,-183.04,0.00023813,2]
[340312464,1729029032080,-347.54,0.00023875,2]
[340312465,1729029032089,-2946.7393,0.000239,2]
[340312466,1729029032098,-866.61,0.0002399,3]
[340312467,1729029032107,-7615.5857256,0.00024,2]
[340312468,1729029032116,-10464.60106616,0.00024,2]
[340312469,1729029032125,-10000.0,0.00024,2]
[340312470,1729029032134,-10000.0,0.00024,2]
[340312471,1729029032143,-10000.0,0.00024,2]
[340312472,1729029032152,-15836.84252963,0.00024,2]
[340312473,1729029032163,-10000.0,0.00024,2]
[340312474,1729029032172,-16592.59862476,0.00024,2]
[340312475,1729029032182,-11022.61871374,0.00024,2]
[340312476,1729029032191,-2482.0,0.00024015,2]
[340312477,1729029032200,-366.62,0.00024178,2]
[340312478,1729029032209,-918.72407772,0.00024233,2]
[340312479,1729029032220,-918.72407772,0.00024344,2]
[340312480,1729029032229,-918.72407772,0.00024456,2]
[340312481,1729029032238,-918.72407772,0.00024567,2]
[340312482,1729029032247,-375.0,0.00024657,2]
[340312483,1729029032257,-918.72407772,0.00024678,2]
[340312484,1729029032266,-150.0,0.00024733,2]
[340312485,1729029032275,-150.0,0.0002475,2]
[340312486,1729029032285,-150.0,0.00024788,2]
[340312487,1729029032296,-918.72407772,0.00024789,2]
[340312488,1729029032307,-150.63616846,0.00024793,2]
[340312489,1729029032316,-10274.424411,0.000248,2]
[340312490,1729029032326,-150.0,0.00024802,2]
[340312491,1729029032336,-180.03694948,0.00024819,2]
[340312492,1729029032346,-150.63616844,0.0002482,2]
[340312493,1729029032355,-150.0,0.00024823,2]
[340312494,1729029032364,-279.47320693,0.00024824,2]
[340312495,1729029032373,-150.0,0.00024828,2]
[340312496,1729029032382,-150.0,0.00024835,2]
[340312497,1729029032393,-900.59278751,0.00024844,2]
[340312498,1729029032405,-150.63616844,0.00024847,2]
[340312499,1729029032415,-150.0,0.00024852,2]
[340312500,1729029032424,-150.0,0.00024855,2]
[340312501,1729029032433,-150.0,0.00024865,2]
[340312502,1729029032444,-150.0,0.0002487,2]
[340312503,1729029032453,-500.0,0.00024873,2]
[340312504,1729029032462,-150.63616844,0.00024873,2]
[340312505,1729029032472,-150.0,0.00024883,2]
[340312506,1729029032482,-157.71522982,0.00024884,2]
[340312507,1729029032492,-10617.8220148,0.0002489,5]
[340312508,1729029032502,-687.4213,0.0002489,2]
[340312509,1729029032512,-60938.2923,0.0002489,2]
[340312510,1729029032524,-10214.6905,0.0002489,2]
[340312511,1729029032534,-150.0,0.00024893,2]
[340312512,1729029032543,-156.321,0.00024894,8]
[340312513,1729029032553,-150.0,0.00024895,2]
[340312514,1729029032564,-51402.3473,0.000249,2]
[340312515,1729029032573,-160.98897749,0.000249,2]
[340312516,1729029032582,-155.81,0.000249,31]
[340312517,1729029032591,-155.81,0.000249,31]
[340312518,1729029032601,-155.81,0.000249,31]
[340312519,1729029032611,-155.81,0.000249,31]
[340312520,1729029032621,-155.81,0.000249,31]
[340312521,1729029032631,-155.81,0.000249,31]
[340312522,1729029032641,-155.81,0.000249,31]
[340312523,1729029032650,-918.72407772,0.000249,2]
[340312524,1729029032659,-150.63616844,0.000249,2]
[340312525,1729029032668,-150.0,0.00024904,2]
[340312526,1729029032678,-150.0,0.00024909,2]
[340312527,1729029032687,-150.0,0.00024929,2]
[340312528,1729029032696,-150.0,0.00024934,2]
[340312529,1729029032705,-150.0,0.00024939,2]
[340312530,1729029032714,-150.0,0.00024942,2]
[340312531,1729029032723,-150.0,0.00024946,2]
[340312532,1729029032732,-150.0,0.00024947,2]
[340312533,1729029032741,-150.0,0.00024951,2]
[340312534,1729029032750,-150.0,0.00024952,2]
[340312535,1729029032759,-150.0,0.00024958,2]
[340312536,1729029032768,-150.0,0.00024958,2]
[340312537,1729029032778,-150.0,0.00024959,2]
[340312538,1729029032787,-157.59,0.00024962,2]
[340312539,1729029032798,-150.0,0.00024962,2]
[340312540,1729029032808,-2123.56440296,0.00024963,5]
[340312541,1729029032817,-150.0,0.00024964,2]
[340312542,1729029032826,-150.0,0.00024965,2]
[340312543,1729029032835,-150.0,0.00024965,2]
[340312544,1729029032845,-150.0,0.00024965,2]
[340312545,1729029032853,-150.0,0.00024966,2]
[340312546,1729029032863,-150.0,0.00024968,2]
[340312547,1729029032872,-314.77415551,0.0002497,2]
[340312548,1729029032881,-500.0,0.00024973,2]
[340312549,1729029032890,-150.0,0.00024974,2]
[340312550,1729029032899,-150.0,0.00024978,2]
[340312551,1729029032908,-150.0,0.00024979,2]
[340312552,1729029032918,-57336.2388799,0.0002498,5]
[340312553,1729029032927,-1303.3472058,0.0002499,5]
[340312554,1729029032937,-197.65969227,0.0002499,2]
[340312555,1729029032946,-3910.0416174,0.0002499,5]
[340312556,1729029032955,-197.65969227,0.0002499,2]